bitfinex/quotes_BTCUSD_20250530
["timestamp","ask_amount","ask_price","bid_price","bid_amount"]
[1748573047074,4.899e-05,106050.0,106040.0,5.39574625]
[1748573047309,0.0094777,106050.0,106040.0,5.3925773]
[1748573047767,0.0189065,106050.0,106040.0,1.5934913]
[1748573048001,0.02833548,106050.0,106040.0,6.2703203]
[1748573048233,0.02833556,106050.0,106040.0,5.8439953]
[1748573048466,0.02833548,106050.0,106040.0,5.0292893]
[1748573048715,0.02833548,106050.0,106040.0,5.03245671]
[1748573048939,0.0189065,106050.0,106040.0,5.24038371]
[1748573049432,0.0189065,106050.0,106040.0,5.23621123]
[1748573049672,0.02833556,106050.0,106040.0,5.23621123]
[1748573049907,0.02833548,106050.0,106040.0,6.21786523]
[1748573050145,4.899e-05,106050.0,106040.0,6.19173771]
[1748573050375,4.899e-05,106050.0,106040.0,6.48883771]
[1748573050604,4.899e-05,106050.0,106040.0,6.4856703]
[1748573050839,4.899e-05,106050.0,106040.0,1.8905913]
[1748573051074,4.899e-05,106050.0,106040.0,6.7430583]
[1748573051346,0.03771368,106060.0,106050.0,2.24054885]
[1748573051572,0.03771368,106060.0,106050.0,2.34724999]
[1748573051796,0.03771368,106060.0,106050.0,2.17949008]
[1748573051990,0.03771368,106060.0,106050.0,2.60777708]
[1748573052251,0.01885653,106060.0,106050.0,2.60777708]
[1748573052482,0.02828497,106060.0,106050.0,2.60777708]
[1748573052986,0.02828453,106060.0,106050.0,2.64217606]
[1748573053205,0.02828453,106060.0,106050.0,2.64217614]
[1748573053412,0.02828453,106060.0,106050.0,1.40898908]
[1748573053613,0.02828453,106060.0,106050.0,1.42784712]
[1748573053825,0.02828453,106060.0,106050.0,1.41841814]
[1748573054245,0.02828453,106060.0,106050.0,1.42784712]
[1748573055249,0.00942791,106060.0,106050.0,1.42784712]
[1748573055453,0.00942782,106060.0,106050.0,6.03359009]
[1748573055662,0.00942782,106060.0,106050.0,5.99059909]
[1748573055873,0.01885582,106060.0,106050.0,5.99059909]
[1748573056295,0.028284,106060.0,106050.0,5.99059909]
[1748573056507,0.02828373,106060.0,106050.0,5.91165241]
[1748573056721,0.00942738,106070.0,106060.0,0.24775747]
[1748573056936,0.02828195,106070.0,106060.0,3.73835468]
[1748573057148,0.03770959,106070.0,106060.0,3.74778286]
[1748573057349,0.02828195,106070.0,106060.0,4.14778286]
[1748573057569,0.19796379,106080.0,106070.0,1.69757672]
[1748573057775,0.19796379,106080.0,106070.0,1.61940095]
[1748573057984,0.19796379,106080.0,106070.0,1.51496995]
[1748573058189,0.19796379,106080.0,106070.0,1.91496995]
[1748573058401,0.19796379,106080.0,106070.0,1.88486995]
[1748573058606,0.19796379,106080.0,106070.0,1.86169468]
[1748573058807,0.19796379,106080.0,106070.0,1.85226695]
[1748573059043,0.19796379,106080.0,106070.0,1.67987495]
[1748573059472,0.00942658,106080.0,106070.0,1.88728486]
[1748573059689,0.03770559,106080.0,106070.0,1.88728486]
[1748573059892,0.03870559,106080.0,106070.0,1.88728486]
[1748573060097,0.03870559,106080.0,106070.0,1.89671224]
[1748573060309,0.03870559,106080.0,106070.0,1.88728486]
[1748573060526,0.02927884,106080.0,106070.0,1.92544288]
[1748573060736,0.04813226,106080.0,106070.0,1.92544297]
[1748573060944,0.04813217,106080.0,106070.0,1.91601568]
[1748573061187,0.01985217,106080.0,106070.0,5.80365964]
[1748573061438,0.01985217,106080.0,106070.0,5.39699338]
[1748573061649,0.02927848,106080.0,106070.0,5.39699338]
[1748573061856,0.03870497,106080.0,106070.0,5.39699338]
[1748573062064,0.02927848,106080.0,106070.0,5.09643638]
[1748573062276,0.03770497,106080.0,106070.0,5.09361038]
[1748573062476,0.03770568,106080.0,106070.0,5.07475598]
[1748573062702,0.02827893,106080.0,106070.0,1.99550165]
[1748573062923,0.21679598,106090.0,106080.0,2.44567539]
[1748573063157,0.03770267,106090.0,106080.0,2.773283]
[1748573063368,0.03770267,106090.0,106080.0,2.78270958]
[1748573063583,0.21679634,106090.0,106080.0,3.15442959]
[1748573063799,0.02827716,106090.0,106080.0,2.96229859]
[1748573064017,0.22622229,106090.0,106080.0,0.7027208]
[1748573064224,0.22622229,106090.0,106080.0,0.72157439]
[1748573064440,0.22622229,106090.0,106080.0,1.11214764]
[1748573064866,0.22622229,106090.0,106080.0,1.31121125]
[1748573065070,0.02827716,106090.0,106080.0,1.32063783]
[1748573065288,0.18277857,106100.0,106080.0,1.32063783]
[1748573065497,0.18277857,106100.0,106090.0,0.1055948]
[1748573066660,0.18477857,106100.0,106090.0,0.1055948]
[1748573067569,0.20007857,106100.0,106090.0,0.1055948]
[1748573067797,0.18477857,106100.0,106090.0,0.1055948]
[1748573068522,0.18477857,106100.0,106090.0,0.5055948]
[1748573069620,0.18477857,106100.0,106090.0,0.51520883]
[1748573069836,0.01142462,106100.0,106090.0,3.82260365]
[1748573070041,0.03027386,106100.0,106090.0,3.56397167]
[1748573070452,0.03027386,106100.0,106090.0,3.18730225]
[1748573070666,0.03969866,106100.0,106090.0,3.20615318]
[1748573070871,0.03969866,106100.0,106090.0,3.19672776]
[1748573071282,0.03027377,106100.0,106090.0,3.20615318]
[1748573071494,0.03027377,106100.0,106090.0,3.54615256]
[1748573071495,0.002,106100.0,106090.0,3.54615256]
[1748573071712,0.002,106100.0,106090.0,1.12285556]
[1748573071941,0.002,106100.0,106090.0,6.17285556]
[1748573072175,0.01142427,106100.0,106090.0,6.17285556]
[1748573072410,0.00942427,106100.0,106090.0,6.17285556]
[1748573072876,0.00942427,106100.0,106090.0,6.17385556]
[1748573073112,0.02827128,106110.0,106100.0,2.6787431]
[1748573073355,0.00942338,106110.0,106100.0,3.51194149]
[1748573073588,0.02827093,106110.0,106100.0,3.51194167]
[1748573073819,0.02827093,106110.0,106100.0,3.9496392]
[1748573074055,0.03769502,106110.0,106100.0,3.94021467]
[1748573074307,0.03769502,106110.0,106100.0,3.9496392]
[1748573074557,0.21957278,106130.0,106110.0,0.01454085]
[1748573074840,0.19787043,106130.0,106120.0,3.1531448]
[1748573075082,0.20729248,106130.0,106120.0,2.87963397]
[1748573075329,0.02826614,106130.0,106120.0,2.55460797]
[1748573075577,0.21671426,106130.0,106120.0,3.20907597]
[1748573075869,0.20729248,106130.0,106120.0,0.5013948]
[1748573076398,0.20729248,106130.0,106120.0,0.6409038]
[1748573076693,0.20729248,106130.0,106120.0,0.5013948]
[1748573076909,0.24109248,106130.0,106120.0,0.5013948]
[1748573077634,0.24109248,106130.0,106120.0,0.6071858]
[1748573078115,0.24109248,106130.0,106120.0,0.5013948]
[1748573078363,0.24109248,106130.0,106120.0,0.6103878]
[1748573078609,0.24109248,106130.0,106120.0,0.50171547]
[1748573078840,0.24109248,106130.0,106120.0,0.90171547]
[1748573079065,0.24109248,106130.0,106120.0,1.13944847]
[1748573079543,0.20929248,106130.0,106120.0,1.13944847]
[1748573080251,0.20929248,106130.0,106120.0,1.17114847]
[1748573080745,0.19987043,106130.0,106120.0,1.17114847]
[1748573081688,0.19987043,106130.0,106120.0,5.46695215]
[1748573081689,0.01142178,106130.0,106120.0,5.46695215]
[1748573081910,0.01142178,106130.0,106120.0,5.26075886]
[1748573082120,0.02084383,106130.0,106120.0,4.73009319]
[1748573082383,0.03026614,106130.0,106120.0,4.45830404]
[1748573082606,0.20729248,106130.0,106120.0,1.91086218]
[1748573082848,0.20829248,106130.0,106120.0,1.91086218]
[1748573083087,0.19887043,106130.0,106120.0,1.91294218]
[1748573083295,0.19887043,106130.0,106120.0,1.91094218]
[1748573083723,0.19887043,106130.0,106120.0,1.91194218]
[1748573084153,0.19787043,106130.0,106120.0,1.91194218]
[1748573086261,0.19787043,106130.0,106120.0,1.50926218]
[1748573086472,0.19787043,106130.0,106120.0,1.91174218]
[1748573088619,0.19787043,106130.0,106120.0,1.92744218]
[1748573090710,0.19787043,106130.0,106120.0,1.91174218]
[1748573091126,0.19787043,106130.0,106120.0,1.94264218]
[1748573091774,0.19787043,106130.0,106120.0,1.91174218]
[1748573092042,0.19787043,106130.0,106120.0,1.50926218]
[1748573092262,0.22937043,106130.0,106120.0,0.09235033]
[1748573092480,0.22937043,106130.0,106120.0,0.39703033]
[1748573092918,0.22937043,106130.0,106120.0,0.09235033]
[1748573093125,0.22937043,106130.0,106120.0,0.39695033]
[1748573093815,0.22937043,106130.0,106120.0,0.09235033]
[1748573094885,0.22937043,106130.0,106120.0,0.09135033]
[1748573095112,0.22937043,106130.0,106120.0,0.09235033]
[1748573095546,0.22937043,106130.0,106120.0,0.09135033]
[1748573096664,0.23037043,106130.0,106120.0,0.09135033]
[1748573097748,0.21477043,106130.0,106120.0,0.09135033]
[1748573098629,0.22359384,106130.0,106120.0,0.09135033]
[1748573098862,0.21477043,106130.0,106120.0,0.09135033]
[1748573100101,0.24009369,106130.0,106120.0,0.09135033]
[1748573100365,0.23127043,106130.0,106120.0,0.09135033]
[1748573100779,0.24009368,106130.0,106120.0,0.09135033]
[1748573100988,0.23127043,106130.0,106120.0,0.09135033]
[1748573101412,0.24009382,106130.0,106120.0,0.09135033]
[1748573101642,0.24009383,106130.0,106120.0,0.09135033]
[1748573101849,0.23127043,106130.0,106120.0,0.09135033]
[1748573102784,0.19887043,106130.0,106120.0,0.09135033]
[1748573103739,0.19878332,106130.0,106120.0,0.09135033]
[1748573104935,0.20760626,106130.0,106120.0,0.09135033]
[1748573105173,0.19878332,106130.0,106120.0,0.09135033]
[1748573107959,0.23078332,106130.0,106120.0,0.09135033]
[1748573108822,0.23960433,106130.0,106120.0,0.09135033]
[1748573109055,0.19878332,106130.0,106120.0,0.12345033]
[1748573110131,0.19878332,106130.0,106120.0,0.13799118]
[1748573110379,0.19878332,106130.0,106120.0,0.32645706]
[1748573110380,0.20820572,106130.0,106120.0,0.32645706]
[1748573110599,0.21762777,106130.0,106120.0,0.32645706]
[1748573110821,0.20820572,106130.0,106120.0,1.34400618]
[1748573112320,0.20820572,106130.0,106120.0,0.60527318]
[1748573112741,0.20820572,106130.0,106120.0,0.34962318]
[1748573113443,0.19887052,106130.0,106120.0,0.13799118]
[1748573114073,0.19887052,106130.0,106120.0,0.44083118]
[1748573114287,0.19887052,106130.0,106120.0,0.61866818]
[1748573114718,0.19887052,106130.0,106120.0,0.44083118]
[1748573115358,0.19887052,106130.0,106120.0,0.61358818]
[1748573115588,0.19887052,106130.0,106120.0,0.44083118]
[1748573116937,0.19887052,106130.0,106120.0,0.44055118]
[1748573117623,0.19887052,106130.0,106120.0,0.40845118]
[1748573118272,0.19887052,106130.0,106120.0,0.42375118]
[1748573120020,0.19887052,106130.0,106120.0,0.09135033]
[1748573120236,0.19887052,106130.0,106120.0,0.39375033]
[1748573121086,0.19887052,106130.0,106120.0,0.09135033]
[1748573121292,0.21457052,106130.0,106120.0,0.39367033]
[1748573121948,0.23017052,106130.0,106120.0,0.09135033]
[1748573123557,0.23017052,106130.0,106090.0,0.05766051]
[1748573123558,0.1979263,106100.0,106090.0,0.14111642]
[1748573123776,0.1979263,106100.0,106090.0,0.22900798]
[1748573123989,0.1979263,106100.0,106090.0,0.54606883]
[1748573124669,0.1979263,106100.0,106090.0,0.54906883]
[1748573124905,0.1979263,106100.0,106090.0,0.55306883]
[1748573126374,0.1979263,106100.0,106090.0,0.25054883]
[1748573126595,0.1979263,106100.0,106090.0,0.55278883]
[1748573127883,0.1979263,106100.0,106090.0,0.25054883]
[1748573128088,0.1979263,106100.0,106090.0,0.55286883]
[1748573128322,0.1979263,106100.0,106090.0,0.5432548]
[1748573128962,0.1979263,106100.0,106090.0,0.4462148]
[1748573129179,0.1979263,106100.0,106090.0,0.1440948]
[1748573129396,0.2073511,106100.0,106090.0,0.1440948]
[1748573129608,0.2073511,106100.0,106090.0,0.5429748]
[1748573130680,0.2073511,106100.0,106090.0,0.7844148]
[1748573131553,0.1979263,106100.0,106090.0,1.1844148]
[1748573133169,0.1979263,106100.0,106090.0,1.37293398]
[1748573134217,0.1979263,106100.0,106090.0,1.1844148]
[1748573138281,0.1979263,106100.0,106090.0,0.8823748]
[1748573138540,0.1979263,106100.0,106090.0,1.1832548]
[1748573139724,0.1979263,106100.0,106090.0,0.7832548]
[1748573139934,0.1979263,106100.0,106090.0,0.7676548]
[1748573140599,0.1979263,106100.0,106090.0,0.7837548]
[1748573140815,0.1979263,106100.0,106090.0,0.97215398]
[1748573141873,0.1979263,106100.0,106090.0,0.7836348]
[1748573142732,0.1979263,106100.0,106090.0,0.97215398]
[1748573143145,0.1979263,106100.0,106090.0,0.7836348]
[1748573143592,0.18850141,106100.0,106090.0,0.7836348]
[1748573143793,0.18850141,106100.0,106090.0,0.97215398]
[1748573146369,0.18850141,106100.0,106090.0,0.7836348]
[1748573147196,0.18850141,106100.0,106090.0,0.7837948]
[1748573152565,0.18850141,106100.0,106090.0,0.78695642]
[1748573153899,0.18850141,106100.0,106090.0,0.68939642]
[1748573154106,0.18850141,106100.0,106090.0,0.48520458]
[1748573154233,0.18850141,106100.0,106090.0,0.78540435]
[1748573154442,0.18850141,106100.0,106090.0,0.78532435]
[1748573155725,0.18850141,106100.0,106090.0,0.65728435]
[1748573156257,0.18850141,106100.0,106090.0,0.68938435]
[1748573158184,0.00942436,106100.0,106090.0,0.87790353]
[1748573158356,0.21677528,106100.0,106090.0,0.87790353]
[1748573158557,0.21677528,106100.0,106090.0,0.88732948]
[1748573158757,0.21677528,106100.0,106090.0,0.87790353]
[1748573158965,0.21677528,106100.0,106090.0,0.88732948]
[1748573159372,0.21677528,106100.0,106090.0,0.87790353]
[1748573160246,0.21677528,106100.0,106090.0,0.97390353]
[1748573161157,0.21677528,106100.0,106090.0,0.98357369]
[1748573161367,0.20735092,106100.0,106090.0,0.98357418]
[1748573163877,0.20735092,106100.0,106090.0,0.98357532]
[1748573164087,0.1979263,106100.0,106090.0,0.98357532]
[1748573164917,0.1979263,106100.0,106090.0,0.79505614]
[1748573166387,0.1979263,106100.0,106090.0,0.98357532]
[1748573167479,0.1979263,106100.0,106090.0,0.79505614]
[1748573169430,0.1979263,106100.0,106090.0,0.79505665]
[1748573174158,0.1979263,106100.0,106090.0,0.79505513]
[1748573175359,0.1979263,106100.0,106090.0,0.79188496]
[1748573175360,0.1639263,106100.0,106090.0,0.79188496]
[1748573175574,0.17335119,106100.0,106090.0,0.79188496]
[1748573178198,0.18925119,106100.0,106090.0,0.33949395]
[1748573178376,0.18925119,106100.0,106090.0,0.09805395]
[1748573178377,0.20455119,106100.0,106090.0,0.09805395]
[1748573178575,0.20455119,106100.0,106090.0,0.007]
[1748573178954,0.54455119,106100.0,106090.0,0.007]
[1748573179308,0.54455119,106100.0,106090.0,0.004]
[1748573179516,0.54455119,106100.0,106090.0,0.007]
[1748573180245,0.54455119,106100.0,106090.0,0.003]
[1748573180456,0.54455119,106100.0,106090.0,0.007]
[1748573180690,0.54455119,106100.0,106090.0,0.003]
[1748573181094,0.20739001,106080.0,106070.0,0.33354]
[1748573181307,0.20739001,106080.0,106070.0,0.42474114]
[1748573182371,0.20739001,106080.0,106070.0,0.44024114]
[1748573182798,0.20739001,106080.0,106070.0,0.44224114]
[1748573183335,0.20739001,106080.0,106070.0,0.44424114]
[1748573183535,0.20739001,106080.0,106070.0,0.41332114]
[1748573185938,0.20739001,106080.0,106070.0,0.42262803]
[1748573186110,0.20739001,106080.0,106070.0,0.41314636]
[1748573187679,0.20739001,106080.0,106070.0,0.42884636]
[1748573188086,0.20739001,106080.0,106070.0,0.13072636]
[1748573188292,0.20739001,106080.0,106070.0,0.41286636]
[1748573188498,0.23759001,106080.0,106070.0,0.11502636]
[1748573189525,0.23759001,106080.0,106070.0,0.41286636]
[1748573189933,0.23759001,106080.0,106070.0,0.11502636]
[1748573192719,0.23759001,106080.0,106070.0,0.02397241]
[1748573195300,0.23759001,106080.0,106070.0,0.02197241]
[1748573195724,0.23759001,106080.0,106070.0,0.02397241]
[1748573195930,0.23759001,106080.0,106070.0,0.02197241]
[1748573196966,0.23759001,106080.0,106070.0,0.01997241]
[1748573197384,0.23859001,106080.0,106070.0,0.01997241]
[1748573198514,0.20839001,106080.0,106070.0,0.14292636]
[1748573201371,0.20739001,106080.0,106070.0,0.14292636]
[1748573201613,0.20739001,106080.0,106070.0,0.44080636]
[1748573201821,0.19796361,106080.0,106070.0,0.44080636]
[1748573202695,0.19796361,106080.0,106070.0,0.44180636]
[1748573203784,0.19796361,106080.0,106070.0,0.14392636]
[1748573204667,0.19796361,106080.0,106070.0,0.12410114]
[1748573204889,0.19796361,106080.0,106070.0,0.09220114]
[1748573206009,0.19796361,106080.0,106070.0,0.12400114]
[1748573206679,0.19796361,106080.0,106070.0,0.10750114]
[1748573206944,0.19796361,106080.0,106070.0,0.09220114]
[1748573215361,0.22916361,106080.0,106070.0,0.09220114]
[1748573216656,0.22916361,106080.0,106070.0,0.00114719]
[1748573217907,0.22916361,106080.0,106070.0,0.00014719]
[1748573218320,0.22916361,106080.0,106070.0,0.00114719]
[1748573218528,0.22916361,106080.0,106070.0,0.00014719]
[1748573219701,0.23016361,106080.0,106070.0,0.00014719]
[1748573220762,0.19896361,106080.0,106070.0,0.00014719]
[1748573223846,0.23036361,106080.0,106070.0,0.00014719]
[1748573225410,0.57036361,106080.0,106070.0,0.00014719]
[1748573225834,0.86820361,106080.0,106070.0,0.00014719]
[1748573226262,0.57036361,106080.0,106070.0,0.00014719]
[1748573226475,0.86820361,106080.0,106070.0,0.00014719]
[1748573227604,0.19896361,106080.0,106070.0,0.03194719]
[1748573228047,0.19896361,106080.0,106070.0,0.12300114]
[1748573229546,0.01042666,106080.0,106070.0,0.12300114]
[1748573229820,0.001,106080.0,106070.0,0.61856946]
[1748573230261,0.001,106080.0,106070.0,0.61149889]
[1748573230263,0.01985235,106080.0,106070.0,0.59971444]
[1748573230500,0.02927884,106080.0,106070.0,0.59971444]
[1748573230734,0.02927884,106080.0,106070.0,0.60914208]
[1748573230979,0.01042604,106080.0,106070.0,0.60914208]
[1748573231213,0.01042604,106080.0,106070.0,0.61856954]
[1748573231214,0.01985226,106080.0,106070.0,0.61856954]
[1748573231454,0.01985226,106080.0,106070.0,0.60914208]
[1748573231699,0.01985226,106080.0,106070.0,1.01856963]
[1748573232197,0.02927866,106080.0,106070.0,1.03716855]
[1748573232640,0.001,106080.0,106070.0,1.22567304]
[1748573232857,0.001,106080.0,106070.0,6.27883727]
[1748573233072,0.001,106080.0,106070.0,6.27990212]
[1748573233514,0.001,106080.0,106070.0,5.00999312]
[1748573233731,0.001,106080.0,106070.0,5.01448512]
[1748573234413,0.00942524,106090.0,106080.0,0.57849001]
[1748573234635,0.00942524,106090.0,106080.0,2.74647355]
[1748573234848,0.0282744,106100.0,106090.0,0.23416003]
[1748573235054,0.0282744,106100.0,106090.0,0.41905398]
[1748573235283,0.21677581,106100.0,106090.0,0.81905398]
[1748573235928,0.20735128,106100.0,106090.0,0.81905398]
[1748573236155,0.19792648,106100.0,106090.0,0.1366948]
[1748573236373,0.19992648,106100.0,106090.0,0.41991395]
[1748573236896,0.19992648,106100.0,106090.0,0.81991395]
[1748573237128,0.19992648,106100.0,106090.0,0.41991395]
[1748573237357,0.19050141,106100.0,106090.0,0.41991395]
[1748573238282,0.19050141,106100.0,106090.0,0.41987395]
[1748573246064,0.19050141,106100.0,106090.0,0.60839313]
[1748573246279,0.19050141,106100.0,106090.0,0.31067313]
[1748573246501,0.19050141,106100.0,106090.0,0.60835313]
[1748573247399,0.19050141,106100.0,106090.0,0.41983395]
[1748573248517,0.19050141,106100.0,106090.0,0.12215395]
[1748573248986,0.19050141,106100.0,106090.0,0.31067313]
[1748573249697,0.20935084,106100.0,106090.0,0.60835313]
[1748573250169,0.19992648,106100.0,106090.0,0.60835313]
[1748573252311,0.19992648,106100.0,106090.0,0.41983395]
[1748573253679,0.19992648,106100.0,106090.0,0.12215395]
[1748573253911,0.19992648,106100.0,106090.0,0.41979395]
[1748573257956,0.19992648,106100.0,106090.0,0.09105395]
[1748573258192,0.19992648,106100.0,106090.0,0.38869395]
[1748573261121,0.19992648,106100.0,106090.0,0.42119395]
[1748573264548,0.19992648,106100.0,106090.0,0.40509395]
[1748573265813,0.19992648,106100.0,106090.0,0.38869395]
[1748573270369,0.19992648,106100.0,106090.0,0.40389395]
[1748573271415,0.19992648,106100.0,106090.0,0.10625395]
[1748573271630,0.19992648,106100.0,106090.0,0.41975395]
[1748573274578,0.19992648,106100.0,106090.0,0.12215395]
[1748573274809,0.19992648,106100.0,106090.0,0.41975395]
[1748573276892,0.19992648,106100.0,106090.0,1.59287198]
[1748573277606,0.19992648,106100.0,106090.0,1.54308898]
[1748573278336,0.19992648,106100.0,106090.0,5.6948317]
[1748573278337,0.002,106100.0,106090.0,5.6948317]
[1748573278583,0.0396984,106100.0,106090.0,3.8695837]
[1748573278788,0.03969831,106100.0,106090.0,3.87900912]
[1748573279041,0.22820034,106100.0,106090.0,0.97687841]
[1748573279256,0.21877581,106100.0,106090.0,0.86172041]
[1748573279473,0.20935119,106100.0,106090.0,0.71966041]
[1748573279686,0.20935119,106100.0,106090.0,0.86206041]
[1748573281489,0.20935119,106100.0,106090.0,0.84193841]
[1748573281710,0.20935119,106100.0,106090.0,1.24193841]
[1748573282142,0.19992639,106100.0,106090.0,1.05341923]
[1748573282361,0.19992639,106100.0,106090.0,0.93114123]
[1748573282577,0.19992639,106100.0,106090.0,0.53114123]
[1748573282999,0.19992639,106100.0,106090.0,0.70348523]
[1748573283218,0.19992639,106100.0,106090.0,1.10348523]
[1748573283441,0.19992639,106100.0,106090.0,1.29200441]
[1748573283654,0.19992639,106100.0,106090.0,1.29232517]
[1748573284078,0.19992639,106100.0,106090.0,1.11994117]
[1748573284504,0.19992639,106100.0,106090.0,0.71994117]
[1748573285581,0.19992639,106100.0,106090.0,0.71677474]
[1748573286223,0.19992639,106100.0,106090.0,0.72620061]
[1748573286439,0.02084969,106100.0,106090.0,0.99619012]
[1748573286889,0.02084924,106100.0,106090.0,1.02446879]
[1748573287100,0.02084897,106100.0,106090.0,1.02446897]
[1748573287318,0.03027368,106100.0,106090.0,1.01504328]
[1748573287543,0.03969857,106100.0,106090.0,1.02446897]
[1748573287979,0.03027368,106100.0,106090.0,1.03389448]
[1748573288633,0.03027368,106100.0,106090.0,1.43389448]
[1748573288862,0.03027368,106100.0,106090.0,4.94004897]
[1748573289107,0.03969857,106100.0,106090.0,3.65834097]
[1748573289322,0.22819998,106100.0,106090.0,1.45136768]
[1748573289543,0.22819998,106100.0,106090.0,1.34865763]
[1748573289544,0.22820061,106100.0,106090.0,1.34865763]
[1748573289763,0.20935137,106100.0,106090.0,1.33923168]
[1748573289982,0.20935137,106100.0,106090.0,1.26454868]
[1748573291037,0.20935137,106100.0,106090.0,1.26454809]
[1748573292802,0.02084996,106100.0,106090.0,1.27397404]
[1748573293244,0.20935137,106100.0,106090.0,1.26454809]
[1748573293661,0.02084951,106100.0,106090.0,1.27397404]
[1748573293892,0.02084951,106100.0,106090.0,1.29282533]
[1748573294125,0.03027378,106100.0,106090.0,1.28339982]
[1748573294345,0.03027378,106100.0,106090.0,1.29282542]
[1748573294628,0.03969867,106100.0,106090.0,1.2928261]
[1748573294888,0.03969867,106100.0,106090.0,1.28340041]
[1748573295160,0.03969867,106100.0,106090.0,1.28340185]
[1748573295408,0.04912365,106100.0,106090.0,1.28340194]
[1748573295653,0.04912436,106100.0,106090.0,1.28340194]
[1748573297199,0.03969929,106100.0,106090.0,1.28340185]
[1748573297401,0.03969929,106100.0,106090.0,1.27397607]
[1748573297604,0.04912436,106100.0,106090.0,1.28340194]
[1748573298447,0.21877635,106100.0,106090.0,1.30159612]
[1748573298563,0.21877635,106100.0,106090.0,1.29150312]
[1748573298758,0.21877635,106100.0,106090.0,0.82230412]
[1748573298963,0.21877635,106100.0,106090.0,1.22775712]
[1748573299369,0.21877635,106100.0,106090.0,1.22775942]
[1748573301051,0.20935146,106100.0,106090.0,1.11103924]
[1748573301260,0.20935146,106100.0,106090.0,0.93118724]
[1748573301676,0.20935146,106100.0,106090.0,0.10591556]
[1748573301916,0.24085146,106100.0,106090.0,0.00032076]
[1748573302140,0.20739001,106080.0,106070.0,0.34442411]
[1748573302352,0.22359001,106080.0,106070.0,0.38860114]
[1748573302566,0.23889001,106080.0,106070.0,0.38860114]
[1748573303007,0.20739001,106080.0,106070.0,0.38860114]
[1748573303445,0.23889001,106080.0,106070.0,0.29854719]
[1748573304535,0.23889001,106080.0,106070.0,0.00214719]
[1748573304757,0.23889001,106080.0,106070.0,0.29950719]
[1748573304962,0.23889001,106080.0,106070.0,0.29750719]
[1748573305172,0.23889001,106080.0,106070.0,0.00014719]
[1748573305384,0.23889001,106080.0,106070.0,0.29754719]
[1748573305820,0.23889001,106080.0,106070.0,0.00014719]
[1748573306266,0.57889001,106080.0,106070.0,0.00014719]
[1748573306901,0.58833384,106080.0,106070.0,0.00014719]
[1748573308135,0.57889001,106080.0,106070.0,0.00014719]
[1748573309514,0.58189001,106080.0,106070.0,0.00014719]
[1748573316480,0.55039001,106080.0,106070.0,0.00014719]
[1748573316890,0.55039001,106080.0,106070.0,0.09120114]
[1748573317162,0.55039001,106080.0,106070.0,0.12200114]
[1748573317762,0.03127981,106080.0,106070.0,0.60795586]
[1748573317991,0.21981676,106080.0,106070.0,0.62249671]
[1748573318415,0.21039036,106080.0,106070.0,0.62249671]
[1748573319178,0.2009637,106080.0,106070.0,0.43394199]
[1748573323671,0.2009637,106080.0,106070.0,0.83394199]
[1748573325357,0.2009637,106080.0,106070.0,0.53654199]
[1748573325614,0.2333637,106080.0,106070.0,0.09120114]
[1748573325830,0.5733637,106080.0,106070.0,0.00014719]
[1748573328225,0.66441765,106080.0,106070.0,0.00014719]
[1748573329324,0.5733637,106080.0,106070.0,0.00014719]
[1748573331145,0.6668837,106080.0,106070.0,0.00014719]
[1748573332475,0.5409637,106080.0,106070.0,0.00014719]
[1748573333527,0.2009637,106080.0,106070.0,0.00014719]
[1748573333951,0.5409637,106080.0,106070.0,0.00014719]
[1748573334374,0.5409637,106080.0,106070.0,0.03064719]
[1748573334584,0.5409637,106080.0,106070.0,0.12170114]
[1748573335634,0.5409637,106080.0,106070.0,0.09120114]
[1748573337733,0.5409637,106080.0,106070.0,0.00014719]
[1748573338362,0.5714637,106080.0,106070.0,0.00014719]
[1748573341343,0.5409637,106080.0,106070.0,0.00014719]
[1748573343137,0.5715637,106080.0,106070.0,0.00014719]
[1748573346803,0.5409637,106080.0,106070.0,0.00014719]
[1748573349029,0.5562637,106080.0,106070.0,0.00014719]
[1748573349927,0.5722637,106080.0,106070.0,0.00014719]
[1748573350827,0.5409637,106080.0,106070.0,0.00014719]
[1748573351084,0.5409637,106080.0,106070.0,0.03254719]
[1748573351303,0.5409637,106080.0,106070.0,0.12360114]
[1748573354817,0.5409637,106080.0,106070.0,0.03254719]
[1748573355927,0.5409637,106080.0,106070.0,0.01604719]
[1748573357682,0.5409637,106080.0,106070.0,0.03114719]
[1748573359479,0.5409637,106080.0,106070.0,0.12220114]
[1748573363385,0.2009637,106080.0,106070.0,0.12220114]
[1748573363607,0.02185324,106080.0,106070.0,0.58454426]
[1748573363837,0.21039019,106080.0,106070.0,0.58454444]
[1748573364051,0.21039019,106080.0,106070.0,0.57829338]
[1748573364276,0.21039019,106080.0,106070.0,0.59714875]
[1748573364503,0.21039019,106080.0,106070.0,0.57511671]
[1748573365124,0.21039019,106080.0,106070.0,0.57829338]
[1748573365315,0.21039019,106080.0,106070.0,0.57511671]
[1748573366210,0.1491098,106080.0,106070.0,0.57511671]
[1748573366836,0.15853629,106080.0,106070.0,0.57511671]
[1748573367048,0.15853629,106080.0,106070.0,0.59429062]
[1748573367256,0.1491098,106080.0,106070.0,0.2493159]
[1748573367881,0.1491098,106080.0,106070.0,0.6493159]
[1748573368374,0.1491098,106080.0,106070.0,0.83787062]
[1748573368999,0.1491098,106080.0,106070.0,0.94615262]
[1748573370443,0.1491098,106080.0,106070.0,0.10710114]
[1748573370644,0.1491098,106080.0,106070.0,0.12270114]
[1748573370853,0.1491098,106080.0,106070.0,0.00014719]
[1748573372513,0.5208098,106080.0,106070.0,0.00014719]
[1748573376451,0.4891098,106080.0,106070.0,0.00014719]
[1748573381250,0.4891098,106080.0,106070.0,0.03054719]
[1748573381834,0.4891098,106080.0,106070.0,0.32746719]
[1748573382036,0.1491098,106080.0,106070.0,0.41852114]
[1748573382241,0.1491098,106080.0,106070.0,0.43306199]
[1748573387991,0.1491098,106080.0,106070.0,0.60864199]
[1748573388198,0.1491098,106080.0,106070.0,0.79719671]
[1748573388415,0.1491098,106080.0,106070.0,0.60864199]
[1748573389079,0.1491098,106080.0,106070.0,0.57106399]
[1748573389313,0.1491098,106080.0,106070.0,0.43306199]
[1748573391880,0.1491098,106080.0,106070.0,0.45162696]
[1748573393627,0.1491098,106080.0,106070.0,0.45146696]
[1748573396518,0.1491098,106080.0,106070.0,0.54470696]
[1748573398940,0.1491098,106080.0,106070.0,0.94470696]
[1748573400238,0.1491098,106080.0,106070.0,0.94462696]
[1748573400451,0.1491098,106080.0,106070.0,0.53614199]
[1748573400671,0.1491098,106080.0,106070.0,0.43282199]
[1748573401964,0.1491098,106080.0,106070.0,0.45204803]
[1748573402398,0.1491098,106080.0,106070.0,0.64060275]
[1748573403031,0.1491098,106080.0,106070.0,0.45204803]
[1748573403307,0.1491098,106080.0,106070.0,0.87098803]
[1748573403524,0.1491098,106080.0,106070.0,1.05954275]
[1748573404208,0.13968305,106080.0,106070.0,0.96422803]
[1748573405298,0.13968305,106080.0,106070.0,0.15536803]
[1748573405513,0.13968305,106080.0,106070.0,0.09120114]
[1748573405728,0.13968305,106080.0,106070.0,0.41990114]
[1748573408866,0.13968305,106080.0,106070.0,0.12330114]